Cogmind - Beta 13 @@@ ROGUE MODE // 2024.08.02 @ 22:23:55 Player: erfael Result: Destroyed by S-10 Pest with Light Assault Rifle Performance ------------- Evolutions (1) 500 Regions Visited (2) 400 Robots Destroyed (11) 55 Value Destroyed (298) 298 Prototype IDs (2) 40 Alien Tech Used (0) 0 Bonus (0) 0 TOTAL SCORE: 1293 Bonus ------- None Cogmind --------- Core Integrity 0/400 Matter 262/300 Energy 100/100 System Corruption 2% Temperature Cool (6) Movement Core (1350) Ox26 Location -9/Materials Parts ------- > --- POWER (1) -------- (None) > --- PROPULSION (2) --- (None) > --- UTILITY (3) ------ Huge Storage Unit Signal Interpreter > --- WEAPON (3) ------- (None) > --- INVENTORY (25) --- Ion Engine Aluminum Leg Aluminum Leg Improved Aluminum Leg Wheel Small Storage Unit Large Storage Unit Signal Interpreter Hacking Suite Assault Rifle Faulty Improved Assault Rifle Improved Assault Rifle Peak State ------------ > --- POWER ------------ Light Ion Engine > --- PROPULSION ------- Wheel Wheel > --- UTILITY ---------- Huge Storage Unit Signal Interpreter > --- WEAPON ----------- Medium Laser Assault Rifle Assault Rifle > --- INVENTORY -------- Ion Engine Aluminum Leg Aluminum Leg Wheel Small Storage Unit Signal Interpreter Hacking Suite Assault Rifle [Rating: 9] Favorites ----------- Power Light Ion Engine Engine Light Ion Engine Propulsion Wheel Wheel Wheel Utility Signal Interpreter Storage Huge Storage Unit Processor Signal Interpreter Weapon Assault Rifle Energy Gun Medium Laser Ballistic Gun Assault Rifle Slashing Weapon Mining Claw Build | -11 -10 -9 ------- Run | Yrd Mat Mat Slots Evolved 2 | . . 2 Power . | . . . Propulsion . | . . . Utility 1 | . . 1 Weapon 1 | . . 1 Parts Attached 12 | 6 5 1 Power 1 | 1 . . Engine 1 | 1 . . Core . | . . . Reactor . | . . . Propulsion 2 | 2 . . Treads . | . . . Leg . | . . . Wheel 2 | 2 . . Hover . | . . . Flight . | . . . Utility 3 | 1 2 . Device . | . . . Storage 2 | 1 1 . Processor 1 | . 1 . Hackware . | . . . Protection . | . . . Artifact . | . . . Weapon 6 | 2 3 1 Energy Gun 1 | . . 1 Energy Cannon . | . . . Ballistic Gun 4 | 2 2 . Ballistic Cannon . | . . . Launcher . | . . . Special Weapon . | . . . Impact Weapon . | . . . Slashing Weapon 1 | . 1 . Piercing Weapon . | . . . Special Melee Weapon . | . . . Unidentified Prototypes . | . . . Parts Lost 6 | . . 6 Power 1 | . . 1 Propulsion 2 | . . 2 Utility . | . . . Weapon 3 | . . 3 Highest Loss Streak 5 | . . 5 To Critical Strikes . | . . . Average Slot Usage (%) 90 | . 100 81 Engine 10 | . 14 7 Wheel 23 | . 28 19 Storage 12 | . 14 11 Processor 12 | . 14 11 Energy Gun 5 | . . 10 Ballistic Gun 23 | . 26 21 Naked Turns . | . . . Heaviest Build 89 | 12 87 89 Greatest Support 20 | 20 20 20 Greatest Overweight (x) 28 | . 4 28 Average Overweight (x) 1 | . . 4 Largest Inventory Capacity 25 | 8 25 25 Average Capacity 17 | 6 10 25 Most Carried 12 | 6 8 12 Average Carried 8 | 3 6 10 Final Capacity 25 | 8 25 25 Final Carried 12 | 4 8 12 Class Distribution -------------------- 55% | Mutant 44% | Gunner Dominant Class ---------------- Mutant | -10/Materials Gunner | -9/Materials Resources | -11 -10 -9 ----------- Run | Yrd Mat Mat Matter Collected 405 | 255 79 71 Remotely . | . . . Salvage Created 319 | . 103 216 Parts 24 | . 10 14 Haulers Intercepted . | . . . Recyclers Shooed 1 | . . 1 Parts Field Recycled . | . . . Retrieved Matter . | . . . Parts Self-Destructed . | . . . Prevented . | . . . Kills | -11 -10 -9 ------- Run | Yrd Mat Mat Combat Hostiles Destroyed 8 | . 4 4 Guns 8 | . 4 4 Classes Destroyed 6 | . 3 3 Worker 1 | . . 1 Operator 1 | . . 1 Watcher 1 | . 1 . Swarmer 3 | . 3 . Grunt 3 | . 1 2 Sentry 2 | . . 2 Best Kill Streak 3 | . 3 3 Combat Bots Only 3 | . 3 2 Max Kills in Single Turn 1 | . 1 1 Gunslinging . | . . . Exploded . | . . . Melee . | . . . Uniques/NPCs Destroyed . | . . . Combat | -11 -10 -9 -------- Run | Yrd Mat Mat Hostile Shots Fired 88 | . 20 68 Missed 19 | . 3 16 Damage Taken 958 | . 161 797 Core 424 | . 24 400 Absorbed by Shields . | . . . Core Remaining (%) 95 | 100 90 . Volleys Fired 29 | . 16 13 Largest 3 | . 2 3 Hottest 90 | . 40 90 Shots Fired 64 | . 25 39 Gun 64 | . 25 39 Cannon . | . . . Launcher . | . . . Special . | . . . Kinetic 51 | . 25 26 Thermal 13 | . . 13 Explosive . | . . . Electromagnetic . | . . . Robot Hit Streak 9 | . 4 9 Robot Miss Streak 3 | . 3 3 Penetration Max . | . . . Secondary Targets . | . . . Shots Hit Robots 36 | . 14 22 Core Hits 18 | . 6 12 Critical Kills . | . . . Critical Parts Destroyed . | . . . Critical Strikes . | . . . Melee Attacks 1 | . 1 . Impact . | . . . Slashing 1 | . 1 . Piercing . | . . . Sneak Attacks . | . . . Combat Hostiles . | . . . Follow-up Attacks . | . . . Damage Inflicted 623 | . 168 455 Guns 439 | . 168 271 Cannons . | . . . Explosions 184 | . . 184 Melee . | . . . Ramming . | . . . Kinetic 339 | . 168 171 Thermal 100 | . . 100 Explosive 184 | . . 184 Electromagnetic . | . . . Impact . | . . . Slashing . | . . . Piercing . | . . . Highest Corruption 2 | . . 2 Average Corruption 2 | . . 2 Corruption Purged . | . . . Corruption Blocked . | . . . Overload Shots . | . . . Overflow Damage 19 | . . 19 Projectiles . | . . . Explosions 19 | . . 19 Melee . | . . . Knockbacks . | . . . Impact . | . . . Kinetic . | . . . Secondary . | . . . Self-Inflicted Damage 226 | . . 226 Shots 2 | . . 2 Rammed . | . . . Targets Rammed . | . . . Kicked . | . . . Crushed . | . . . Highest Temperature 69 | . 6 69 Average Temperature 28 | . 6 29 Received Heat Transfer 267 | . 54 213 Siege Activations . | . . . Robots Corrupted . | . . . Combat Hostiles . | . . . Parts Fried . | . . . Impact Corruptions . | . . . Robots Melted . | . . . Combat Hostiles . | . . . Parts Melted . | . . . Heat Transferred 296 | . . 296 Parts Sabotaged . | . . . Parts Stolen . | . . . Parts Stripped . | . . . Power Chain Reactions . | . . . Alert | -11 -10 -9 ------- Run | Yrd Mat Mat Peak Influence 284 | . 168 284 Initial 70 | . . 70 Average 118 | . 114 140 Maximum Alert Level 1 | . . 1 Low Security (%) 94 | 100 100 87 Level 1 5 | . . 12 Level 2 . | . . . Level 3 . | . . . Level 4 . | . . . Level 5 . | . . . High Security . | . . . Max Security . | . . . Squads Dispatched 3 | . 3 . Investigation 1 | . 1 . Extermination . | . . . Reinforcement 2 | . 2 . Assault . | . . . Garrison . | . . . Intercept . | . . . Searches Triggered . | . . . Construction Impeded . | . . . Haulers Reinforced . | . . . Active Scanning Responses . | . . . Cargo Convoy Interrupts . | . . . Stealth | -11 -10 -9 --------- Run | Yrd Mat Mat Distress Signals 1 | . 1 . Communications Jammed . | . . . Distress Signals . | . . . Times Spotted 26 | . 12 14 Peak Tracking Total 8 | . 3 8 Tactical Retreats . | . . . Traps | -11 -10 -9 ------- Run | Yrd Mat Mat Traps Triggered 2 | . 1 1 Indirectly . | . . . Trap Hack Attempts . | . . . Triggered . | . . . Disarmed . | . . . Reprogrammed . | . . . Reused . | . . . Traps Extracted . | . . . Installed . | . . . Triggered . | . . . Machines | -11 -10 -9 ---------- Run | Yrd Mat Mat Machines Disabled 3 | . 1 2 Max in Single Turn 2 | . 1 2 Machines Repaired . | . . . Machines Dismantled . | . . . Machines Sabotaged . | . . . Overloaded Fab Kills . | . . . Hacking | -11 -10 -9 --------- Run | Yrd Mat Mat Machines Accessed 5 | . 1 4 Terminals 5 | . 1 4 Fabricators . | . . . Repair Stations . | . . . Recycling Units . | . . . Scanalyzers . | . . . Garrison Access . | . . . Total Hacks 9 | . 1 8 Successful 4 | . 1 3 Failed 5 | . . 5 Catastrophic . | . . . Database Lockouts . | . . . Manual 6 | . 1 5 Terminals 9 | . 1 8 Fabricators . | . . . Repair Stations . | . . . Recycling Units . | . . . Scanalyzers . | . . . Garrison Access . | . . . Terminal Hacks 3 | . . 3 Prototype ID Bank 1 | . . 1 Reinforcement Status 1 | . . 1 Zone Layout 1 | . . 1 Fabricator Hacks . | . . . Repair Station Hacks . | . . . Recycling Unit Hacks . | . . . Scanalyzer . | . . . Garrison Access Hacks . | . . . Unauthorized Hacks 1 | . 1 . Terminals 1 | . 1 . Botnet 1 | . 1 . Fabricators . | . . . Repair Stations . | . . . Recycling Units . | . . . Scanalyzers . | . . . Garrison Access . | . . . Data Cores Recovered 1 | . . 1 Used . | . . . Hacking Detections 2 | . . 2 Full Trace Events . | . . . Feedback Events . | . . . Feedback Blocked . | . . . Robot Schematics Acquired . | . . . Robots Built . | . . . Authchips . | . . . Time . | . . . Total Robot Build Rating . | . . . Part Schematics Acquired . | . . . Parts Built . | . . . Authchips . | . . . Time . | . . . Total Part Build Rating . | . . . Parts Repaired . | . . . Time . | . . . Parts Recycled . | . . . Recycled Matter . | . . . Retrieved Matter . | . . . Retrieved Components . | . . . Parts Scanalyzed . | . . . Part Schematics Acquired . | . . . Parts Damaged . | . . . Bothacking | -11 -10 -9 ------------ Run | Yrd Mat Mat Used RIF Installer . | . . . Robots Hacked . | . . . Non-combat . | . . . Combat . | . . . Robot Hacks Applied . | . . . Relay Couplers Released . | . . . Fabnet Peak Effective % . | . . . Robots Rewired . | . . . Allies Hacked . | . . . Hacks Repelled . | . . . Allies | -11 -10 -9 -------- Run | Yrd Mat Mat Total Allies . | . . . Largest Group . | . . . Highest-Rated Group . | . . . Highest-Rated Ally . | . . . Total Orders . | . . . Ally Attacks . | . . . Total Damage . | . . . Kills . | . . . Allies Corrupted . | . . . Allies Melted . | . . . Intel | -11 -10 -9 ------- Run | Yrd Mat Mat Robot Analysis Total . | . . . Derelict Logs Recovered . | . . . Drone Launches . | . . . Drone Recoveries . | . . . Exploration | -11 -10 -9 ------------- Run | Yrd Mat Mat Turns Passed 727 | 50 337 340 Spaces Moved 536 | 44 307 185 Core 5 | 2 . 3 Treads . | . . . Legs . | . . . Wheels 531 | 42 307 182 Hover . | . . . Flight . | . . . Fastest Speed 50 | 50 80 140 Average Speed 112 | 78 87 160 Slowest Speed 1450 | 80 140 1450 Overloaded Moves . | . . . Propulsion Burnouts . | . . . Robots Hopped . | . . . Cave-ins Triggered . | . . . Exploration Rate (%) 25 | 3 53 20 Regions Visited 2 Branch Regions . Pre-discovered Areas . | . . . Known Exits Taken 1 | . 1 . Unknown Exits Taken 1 | 1 . . Scrap Searched . | . . . Spaces Dug 1 | . 1 . Terrain Destroyed 43 | . 1 42 Melee 1 | . 1 . Projectile . | . . . AOE 42 | . . 42 Terrain Rammed . | . . . Walls Destroyed . | . . . Machines Disabled . | . . . Actions | -11 -10 -9 --------- Run | Yrd Mat Mat Total 618 | 59 349 210 Wait 18 | . 12 6 Move 534 | 43 306 185 Hop . | . . . Pick Up 22 | 10 7 5 Fast Attach . | . . . Attach 10 | 6 3 1 Detach . | . . . Swap 2 | . 2 . Drop 2 | . 2 . Fire 29 | . 16 13 Melee 1 | . 1 . Ram . | . . . Kick . | . . . Crush . | . . . Escape Stasis . | . . . Rewire . | . . . Trap . | . . . Miscellaneous . | . . . Route ------- -11/Scrapyard -10/Materials (discovered 2 exits: *Mat / [*Min]) -9/Materials History --------- Turn | Location | Event 5 | -11/Scrapyard | Discovered new exit (range 15) 51 | -11/Scrapyard | Entered Materials 206 | -10/Materials | Discovered new exit (range 14) 311 | -10/Materials | Discovered new exit (range 9) 315 | -10/Materials | Build established: Mutant 317 | -10/Materials | Identified exit to Materials 388 | -10/Materials | Entered another Materials area 388 | -9/Materials | Evolved 2 slots: Utility x1, Weapon x1 675 | -9/Materials | Build established: Gunner 699 | -9/Materials | Core integrity fell below 50% 724 | -9/Materials | Core integrity fell below 20% 728 | -9/Materials | Destroyed by S-10 Pest with Light Assault Rifle Last Messages --------------- 00718_ U-05 Engineer builds a Door. 00719_ U-05 Engineer builds a Wall. 00719_ Assault Rifle destroyed. 00720_ The unstable cave ceiling collapses. 00720_ K-01 Serf collects debris. 00721_ The unstable cave ceiling collapses. 00721_ K-01 Serf collects debris. 00721_ U-05 Engineer builds a Wall. 00723_ U-05 Engineer lays Concrete. 00724_ K-01 Serf collects debris. 00724_ U-05 Engineer builds a Wall. 00724_ U-05 Engineer lays Concrete. 00724_ K-01 Serf collects debris. 00725_ U-05 Engineer lays Concrete. 00726_ The unstable cave ceiling collapses. 00726_ U-05 Engineer lays Concrete. 00726_ K-01 Serf collects debris. 00726_ U-05 Engineer lays Concrete. 00727_ K-01 Serf collects debris. 00728_ U-05 Engineer lays Concrete. Map ----- +----------------------------------------------------+ | ?????????????????????????????????????????????????? | | ?????????????????????????????????????????????????? | | ?????????????????????????????????????????????????? | | ?????????????????????????????????????????????????? | | ??????????????????????????????????????????? ?????? | | ??????????????????????????????????????????? ?????? | | ??????????????????????????????????????????? ?????? | | ??????????????????????????????????????????? ?????? | | ??????????????????????????????????????????? ?????? | | ??????????????????????????????????????????? ?????? | | ??????????????????????????????????????????? ?????? | | ??????????????????????????????????????????# #????? | | ??????????????????????????????????????????# #????? | | ??????????????????????????????????????????# #????? | | ???????????????????##?????????????????????# #????? | | ??????????????????? ]?????????????????????# #????? | | ???????????????+?? ?????????????????????# #????? | | ???????????????# """ ???????????###??????# #?#### | | ???????????????# """ ????????#### ######## ### | | ???????????????# """ #####???# ==[ # # | | ???????????????? #####?# # "" # " | | ?????? ??????????#+ ### / T + " | | ??????# ?????????# # !! # # " | | ?????## ?????### # # ! """ # # | | ?????# ##### # # ! R" ### ###### | | ?????# [ =%# uk@ """ #?# #????? | | ?????# *%= T u% #?# #????? | | ?????# ! = % #u ####+####### #????? | | ?????# ##### # g #?# ##???? | | ????????######?## # ss ss #?# [ T#???? | | ????????# [[ [ # # k ss##?# T ##???? | | ????????# [ + # ## # s #??# #?# ?? | | ????????# # ### ###??# #?# ?? | | ????????######??# #?#### ##????# ### ?? | | ??????????????####/#####?# #?????# /] # ?? | | ??????????????# ### ####### ] # ?? | | ??????????????# + ] + ?? | | ??????????????# ### ####### # ?? | | ??????????????# #?# #?????# # ?? | | ??????????????# #?# #?????####"T"## ##### | | ??????????????# #?# #???????##"""## # | | ??????????????# #?# #??????? # # | | ??????????????# #?# #??????# + + | | ??????????????# #?# #??????# # # | | ??????????????##########?# ############### ##### | | ?????????????????####????# + ## ##??? | | ????????????????? #????# #### T # #### | | ????????????????? #?#### #??# # | | ????????????????? #?# #??# """ """ / | | ????????????????? #?# #??# """ """ # | +----------------------------------------------------+ Best States ------------- Heat Dissipation 28 Energy Generation 10 Energy Capacity 125 Matter Stores 291 Matter Capacity 300 Sight Range 16 Terrain Scan Density 10 Evasion (%) 44 Item Schematics ----------------- None Robot Schematics ------------------ None Fabricated ------------ Nothing Alien Tech Used ----------------- None Achievements -------------- None Challenges ------------ None Game ------ Seed CloakingRegenerativeShield Manual? 0 Play Time 00:19:58 Cumulative 4.2 hours Start 2024.07.23 @ 22:21:51 End 2024.08.02 @ 22:23:55 Sessions 3 Manual Loads 0 Difficulty Rogue Special Mode None Game No. 6 Rogue 6 Adventurer 0 Explorer 0 Win Type - Total 0 Types 0/0/0/0/0/0/0/0/0 Lore% 3 Gallery% 6 Achievement% 7 Wizard Run 0 Options --------- Layout 0 ASCII 0 Keyboard 1 Movement Numpad Keybinds 0 Fullscreen 1 Font 18/SmallcapsGlow Map View 76x50 Zoom Use 13% Tactical HUD 1 Map Filters NONE Filters NONE Steam 1 RUN: b9cc776c-3a73-477a-ae0f-61071dcd353f